[Event "Titled Tuesday Blitz September 28 2021"]
[White "Siva Mahadevan"]
[Black "Svane, Rasmus"]
[WhiteFideId "25043153"]
[BlackFideId "4657101"]
[WhiteElo "2829"]
[BlackElo "2902"]
[Result "0-1"]
[Round "07"]
[TimeControl "180+1"]
[Date "2021.09.28"]
[WhiteClock "0:00:11"]
[BlackClock "0:00:05"]

1. e4 {[%clk 0:03:00]}  c6 {[%clk 0:02:59]} 2. Nf3 {[%clk 0:03:00]}  d5 {[%clk 0:03:00]} 3. Nc3 {[%clk 0:03:01]}  dxe4 {[%clk 0:03:00]} 4. Nxe4 {[%clk 0:03:02]}  Nf6 {[%clk 0:03:01]} 5. Qe2 {[%clk 0:03:02]}  Nxe4 {[%clk 0:03:02]} 6. Qxe4 {[%clk 0:03:03]}  Qa5 {[%clk 0:03:02]} 7. Bc4 {[%clk 0:03:01]}  Bf5 {[%clk 0:03:02]} 8. Qf4 {[%clk 0:03:01]}  e6 {[%clk 0:03:02]} 9. c3 {[%clk 0:02:52]}  Qd8 {[%clk 0:03:00]} 10. d4 {[%clk 0:02:49]}  Bd6 {[%clk 0:03:00]} 11. Qg5 {[%clk 0:02:39]}  O-O {[%clk 0:02:58]} 12. O-O {[%clk 0:02:38]}  Nd7 {[%clk 0:02:56]} 13. Re1 {[%clk 0:02:34]}  h6 {[%clk 0:02:46]} 14. Qxd8 {[%clk 0:02:16]}  Rfxd8 {[%clk 0:02:46]} 15. a4 {[%clk 0:02:12]}  a5 {[%clk 0:02:36]} 16. Bd2 {[%clk 0:02:03]}  Nb6 {[%clk 0:02:35]} 17. Bf1 {[%clk 0:02:01]}  Bc2 {[%clk 0:02:33]} 18. c4 {[%clk 0:01:55]}  Be7 {[%clk 0:02:19]} 19. Rec1 {[%clk 0:01:49]}  Be4 {[%clk 0:02:19]} 20. Be3 {[%clk 0:01:48]}  Bxf3 {[%clk 0:02:19]} 21. gxf3 {[%clk 0:01:49]}  Nc8 {[%clk 0:02:14]} 22. Bg2 {[%clk 0:01:43]}  Nd6 {[%clk 0:02:11]} 23. f4 {[%clk 0:01:41]}  Nf5 {[%clk 0:02:09]} 24. Rd1 {[%clk 0:01:41]}  Rd7 {[%clk 0:02:02]} 25. Bh3 {[%clk 0:01:27]}  g6 {[%clk 0:01:52]} 26. d5 {[%clk 0:01:15]}  cxd5 {[%clk 0:01:49]} 27. cxd5 {[%clk 0:01:16]}  Nxe3 {[%clk 0:01:23]} 28. fxe3 {[%clk 0:01:16]}  Rxd5 {[%clk 0:01:24]} 29. Rxd5 {[%clk 0:01:12]}  exd5 {[%clk 0:01:25]} 30. Rc1 {[%clk 0:01:11]}  b6 {[%clk 0:01:24]} 31. Bg2 {[%clk 0:01:00]}  Bc5 {[%clk 0:01:22]} 32. Rc3 {[%clk 0:00:50]}  Re8 {[%clk 0:01:16]} 33. Bxd5 {[%clk 0:00:46]}  Bxe3+ {[%clk 0:01:16]} 34. Kg2 {[%clk 0:00:40]}  Bxf4 {[%clk 0:01:15]} 35. Rc6 {[%clk 0:00:39]}  Rd8 {[%clk 0:00:33]} 36. Bc4 {[%clk 0:00:36]}  Kg7 {[%clk 0:00:29]} 37. Rxb6 {[%clk 0:00:34]}  f5 {[%clk 0:00:26]} 38. h3 {[%clk 0:00:32]}  Be5 {[%clk 0:00:20]} 39. b3 {[%clk 0:00:31]}  Bc3 {[%clk 0:00:18]} 40. Rb7+ {[%clk 0:00:31]}  Kf6 {[%clk 0:00:18]} 41. Rb6+ {[%clk 0:00:31]}  Kg5 {[%clk 0:00:11]} 42. h4+ {[%clk 0:00:32]}  Kxh4 {[%clk 0:00:07]} 43. Rxg6 {[%clk 0:00:32]}  h5 {[%clk 0:00:07]} 44. Kf3 {[%clk 0:00:31]}  Rd2 {[%clk 0:00:06]} 45. Rg1 {[%clk 0:00:27]}  Bd4 {[%clk 0:00:06]} 46. Rh1+ {[%clk 0:00:18]}  Kg5 {[%clk 0:00:06]} 47. Kg3 {[%clk 0:00:12]}  h4+ {[%clk 0:00:05]} 48. Kf3 {[%clk 0:00:11]}  Rf2# {[%clk 0:00:05]} 0-1


[Site "https://www.chess.com"]

[Event "Titled Tuesday Blitz September 28 2021"]
[White "Taichman, Ori"]
[Black "Bendayan Claros, Aaron"]
[WhiteFideId "2804069"]
[BlackFideId "3803392"]
[WhiteElo "2227"]
[BlackElo "2133"]
[Result "1-0"]
[Round "07"]
[TimeControl "180+1"]
[Date "2021.09.28"]
[WhiteClock "0:00:10"]
[BlackClock "0:00:01"]

1. e4 {[%clk 0:02:44]}  c6 {[%clk 0:02:59]} 2. d4 {[%clk 0:02:44]}  d5 {[%clk 0:03:00]} 3. e5 {[%clk 0:02:44]}  Bf5 {[%clk 0:03:00]} 4. h4 {[%clk 0:02:44]}  h5 {[%clk 0:02:59]} 5. Bd3 {[%clk 0:02:44]}  Bxd3 {[%clk 0:02:58]} 6. Qxd3 {[%clk 0:02:45]}  e6 {[%clk 0:02:59]} 7. Bg5 {[%clk 0:02:46]}  Qa5+ {[%clk 0:02:59]} 8. Nd2 {[%clk 0:02:46]}  Qa6 {[%clk 0:02:59]} 9. c4 {[%clk 0:02:46]}  Ne7 {[%clk 0:03:00]} 10. Ngf3 {[%clk 0:02:42]}  Nf5 {[%clk 0:03:00]} 11. O-O {[%clk 0:02:41]}  Nd7 {[%clk 0:02:59]} 12. b3 {[%clk 0:02:40]}  Ba3 {[%clk 0:02:56]} 13. Rfb1 {[%clk 0:02:31]}  Be7 {[%clk 0:02:50]} 14. Bxe7 {[%clk 0:02:30]}  Nxe7 {[%clk 0:02:51]} 15. a4 {[%clk 0:02:28]}  Nf5 {[%clk 0:02:50]} 16. b4 {[%clk 0:02:26]}  dxc4 {[%clk 0:02:48]} 17. Nxc4 {[%clk 0:02:27]}  b5 {[%clk 0:02:27]} 18. Nd6+ {[%clk 0:02:11]}  Nxd6 {[%clk 0:02:26]} 19. exd6 {[%clk 0:02:12]}  O-O {[%clk 0:02:19]} 20. Ne5 {[%clk 0:02:11]}  Nf6 {[%clk 0:02:04]} 21. Rc1 {[%clk 0:01:57]}  Qb7 {[%clk 0:02:00]} 22. Rxc6 {[%clk 0:01:29]}  bxa4 {[%clk 0:01:56]} 23. Rxa4 {[%clk 0:01:27]}  Nd5 {[%clk 0:01:47]} 24. b5 {[%clk 0:00:52]}  Rfd8 {[%clk 0:01:23]} 25. Qf3 {[%clk 0:00:48]}  Nf6 {[%clk 0:00:47]} 26. d5 {[%clk 0:00:21]}  Qxb5 {[%clk 0:00:39]} 27. Rf4 {[%clk 0:00:14]}  Qxd5 {[%clk 0:00:30]} 28. Rxf6 {[%clk 0:00:15]}  gxf6 {[%clk 0:00:16]} 29. Qxf6 {[%clk 0:00:14]}  Rd7 {[%clk 0:00:04]} 30. Qg5+ {[%clk 0:00:10]}  Kf8 {[%clk 0:00:03]} 31. Qh6+ {[%clk 0:00:10]}  Kg8 {[%clk 0:00:03]} 32. Nxd7 {[%clk 0:00:10]}  Qd1+ {[%clk 0:00:01]} 33. Kh2 {[%clk 0:00:10]} 1-0


[Site "https://www.chess.com"]

[Event "Titled Tuesday Blitz September 28 2021"]
[White "Tologon tegin, Semetei"]
[Black "Samadov, Read"]
[WhiteFideId "13800574"]
[BlackFideId "13417444"]
[WhiteElo "2224"]
[BlackElo "2084"]
[Result "0-1"]
[Round "07"]
[TimeControl "180+1"]
[Date "2021.09.28"]
[WhiteClock "0:00:15"]
[BlackClock "0:00:24"]

1. d4 {[%clk 0:03:00]}  Nf6 {[%clk 0:02:59]} 2. c4 {[%clk 0:03:01]}  e6 {[%clk 0:02:59]} 3. Nc3 {[%clk 0:03:01]}  Bb4 {[%clk 0:02:58]} 4. e3 {[%clk 0:03:01]}  O-O {[%clk 0:02:57]} 5. Ne2 {[%clk 0:03:01]}  d5 {[%clk 0:02:54]} 6. a3 {[%clk 0:03:01]}  Be7 {[%clk 0:02:52]} 7. Ng3 {[%clk 0:03:01]}  b6 {[%clk 0:02:42]} 8. cxd5 {[%clk 0:02:53]}  exd5 {[%clk 0:02:43]} 9. Bd3 {[%clk 0:02:53]}  c5 {[%clk 0:02:41]} 10. O-O {[%clk 0:02:47]}  Nc6 {[%clk 0:02:39]} 11. dxc5 {[%clk 0:02:41]}  bxc5 {[%clk 0:02:39]} 12. Nh5 {[%clk 0:02:42]}  g6 {[%clk 0:02:27]} 13. Nxf6+ {[%clk 0:02:38]}  Bxf6 {[%clk 0:02:27]} 14. Bb5 {[%clk 0:02:38]}  Ne7 {[%clk 0:02:23]} 15. Qf3 {[%clk 0:02:38]}  Bg7 {[%clk 0:02:15]} 16. Rd1 {[%clk 0:02:37]}  Bb7 {[%clk 0:02:13]} 17. Bd2 {[%clk 0:02:33]}  Qb6 {[%clk 0:02:10]} 18. Qe2 {[%clk 0:02:32]}  Qe6 {[%clk 0:01:43]} 19. Rac1 {[%clk 0:02:19]}  Rac8 {[%clk 0:01:35]} 20. Na4 {[%clk 0:02:17]}  c4 {[%clk 0:01:26]} 21. Nc3 {[%clk 0:02:00]}  Nf5 {[%clk 0:01:21]} 22. Qf1 {[%clk 0:01:52]}  d4 {[%clk 0:01:16]} 23. exd4 {[%clk 0:01:51]}  Nxd4 {[%clk 0:01:16]} 24. Be3 {[%clk 0:01:14]}  Rfd8 {[%clk 0:01:13]} 25. Ba4 {[%clk 0:01:11]}  Qg4 {[%clk 0:01:05]} 26. Bxd4 {[%clk 0:01:10]}  Bxd4 {[%clk 0:01:02]} 27. Nb5 {[%clk 0:01:08]}  Bxb2 {[%clk 0:00:55]} 28. Rxd8+ {[%clk 0:01:08]}  Rxd8 {[%clk 0:00:55]} 29. Rxc4 {[%clk 0:01:08]}  Qf5 {[%clk 0:00:41]} 30. Rc7 {[%clk 0:00:57]}  Bd5 {[%clk 0:00:32]} 31. Nc3 {[%clk 0:00:52]}  Be6 {[%clk 0:00:27]} 32. Ne2 {[%clk 0:00:42]}  Qa5 {[%clk 0:00:24]} 33. Rb7 {[%clk 0:00:20]}  Qxa4 {[%clk 0:00:25]} 34. Rxb2 {[%clk 0:00:14]}  Rd1 {[%clk 0:00:25]} 35. Rb8+ {[%clk 0:00:14]}  Kg7 {[%clk 0:00:25]} 36. Nc3 {[%clk 0:00:14]}  Rxf1+ {[%clk 0:00:24]} 37. Kxf1 {[%clk 0:00:15]}  Qc4+ {[%clk 0:00:24]} 0-1


[Site "https://www.chess.com"]

[Event "Titled Tuesday Blitz September 28 2021"]
[White "Tristan, Leonardo"]
[Black "Skatchkov, Valery"]
[WhiteFideId "113816"]
[BlackFideId "24195812"]
[WhiteElo "2404"]
[BlackElo "2195"]
[Result "0-1"]
[Round "07"]
[TimeControl "180+1"]
[Date "2021.09.28"]
[WhiteClock "0:00:12"]
[BlackClock "0:01:21"]

1. d4 {[%clk 0:03:00]}  Nf6 {[%clk 0:02:57]} 2. Nf3 {[%clk 0:03:01]}  e6 {[%clk 0:02:58]} 3. Bf4 {[%clk 0:03:01]}  d5 {[%clk 0:02:57]} 4. e3 {[%clk 0:03:01]}  c5 {[%clk 0:02:57]} 5. Nbd2 {[%clk 0:03:01]}  Nc6 {[%clk 0:02:58]} 6. c3 {[%clk 0:03:01]}  Nh5 {[%clk 0:02:59]} 7. Bg5 {[%clk 0:02:57]}  f6 {[%clk 0:02:59]} 8. Bh4 {[%clk 0:02:57]}  g6 {[%clk 0:03:00]} 9. g4 {[%clk 0:02:51]}  Ng7 {[%clk 0:02:59]} 10. Bg3 {[%clk 0:02:51]}  Bd6 {[%clk 0:02:59]} 11. Bd3 {[%clk 0:02:46]}  O-O {[%clk 0:02:59]} 12. dxc5 {[%clk 0:02:37]}  Bxc5 {[%clk 0:02:59]} 13. Qe2 {[%clk 0:02:38]}  e5 {[%clk 0:02:59]} 14. e4 {[%clk 0:02:38]}  Be6 {[%clk 0:02:43]} 15. exd5 {[%clk 0:02:27]}  Bxd5 {[%clk 0:02:42]} 16. Bc4 {[%clk 0:02:15]}  e4 {[%clk 0:02:20]} 17. Nxe4 {[%clk 0:02:03]}  f5 {[%clk 0:02:08]} 18. Nxc5 {[%clk 0:01:54]}  Re8 {[%clk 0:02:05]} 19. Ne5 {[%clk 0:01:51]}  b5 {[%clk 0:01:47]} 20. Bxd5+ {[%clk 0:01:11]}  Qxd5 {[%clk 0:01:48]} 21. O-O {[%clk 0:00:58]}  Nxe5 {[%clk 0:01:48]} 22. Bxe5 {[%clk 0:00:54]}  Rxe5 {[%clk 0:01:49]} 23. Qxb5 {[%clk 0:00:46]}  Qxc5 {[%clk 0:01:49]} 24. Qb7 {[%clk 0:00:46]}  Rae8 {[%clk 0:01:44]} 25. g5 {[%clk 0:00:44]}  Re4 {[%clk 0:01:40]} 26. h3 {[%clk 0:00:44]}  Ne6 {[%clk 0:01:40]} 27. Rfd1 {[%clk 0:00:37]}  Nxg5 {[%clk 0:01:37]} 28. Rd7 {[%clk 0:00:24]}  Nxh3+ {[%clk 0:01:36]} 29. Kh1 {[%clk 0:00:24]}  Nxf2+ {[%clk 0:01:35]} 30. Kg2 {[%clk 0:00:24]}  Rg4+ {[%clk 0:01:21]} 31. Kf1 {[%clk 0:00:12]}  Qc4+ {[%clk 0:01:21]} 32. Kxf2 {[%clk 0:00:12]}  Qe2# {[%clk 0:01:21]} 0-1


[Site "https://www.chess.com"]

[Event "Titled Tuesday Blitz September 28 2021"]
[White "Urazayev, Arystanbek"]
[Black "Atabayev, Maksat"]
[WhiteFideId "13709810"]
[BlackFideId "14001101"]
[WhiteElo "2321"]
[BlackElo "2457"]
[Result "1-0"]
[Round "07"]
[TimeControl "180+1"]
[Date "2021.09.28"]
[WhiteClock "0:00:21"]
[BlackClock "0:00:01"]

1. e4 {[%clk 0:03:00]}  c5 {[%clk 0:02:57]} 2. Nf3 {[%clk 0:03:01]}  a6 {[%clk 0:02:57]} 3. c3 {[%clk 0:03:00]}  e6 {[%clk 0:02:56]} 4. d4 {[%clk 0:03:00]}  d5 {[%clk 0:02:57]} 5. e5 {[%clk 0:03:00]}  Bd7 {[%clk 0:02:57]} 6. Bd3 {[%clk 0:02:57]}  Bb5 {[%clk 0:02:57]} 7. Bxb5+ {[%clk 0:02:57]}  axb5 {[%clk 0:02:58]} 8. O-O {[%clk 0:02:57]}  Nc6 {[%clk 0:02:56]} 9. Re1 {[%clk 0:02:56]}  cxd4 {[%clk 0:02:49]} 10. cxd4 {[%clk 0:02:55]}  b4 {[%clk 0:02:49]} 11. Nbd2 {[%clk 0:02:53]}  Nge7 {[%clk 0:02:47]} 12. Nb3 {[%clk 0:02:53]}  Nf5 {[%clk 0:02:46]} 13. Bg5 {[%clk 0:02:35]}  Qb6 {[%clk 0:02:42]} 14. g4 {[%clk 0:02:32]}  Nfe7 {[%clk 0:02:39]} 15. Be3 {[%clk 0:02:17]}  h5 {[%clk 0:02:36]} 16. h3 {[%clk 0:02:18]}  Ng6 {[%clk 0:02:33]} 17. Kg2 {[%clk 0:02:08]}  Be7 {[%clk 0:02:29]} 18. g5 {[%clk 0:02:08]}  Kd7 {[%clk 0:02:12]} 19. Re2 {[%clk 0:01:52]}  Rhc8 {[%clk 0:02:10]} 20. Rc2 {[%clk 0:01:49]}  Na5 {[%clk 0:02:03]} 21. Nc5+ {[%clk 0:01:36]}  Bxc5 {[%clk 0:02:00]} 22. dxc5 {[%clk 0:01:36]}  Qa6 {[%clk 0:01:57]} 23. b3 {[%clk 0:01:19]}  Nc6 {[%clk 0:01:36]} 24. Rd2 {[%clk 0:01:20]}  Ke8 {[%clk 0:01:30]} 25. Nd4 {[%clk 0:01:20]}  Ncxe5 {[%clk 0:01:16]} 26. Qxh5 {[%clk 0:01:14]}  Rxc5 {[%clk 0:01:16]} 27. f4 {[%clk 0:01:00]}  Rc3 {[%clk 0:01:14]} 28. Qe2 {[%clk 0:00:36]}  Nd3 {[%clk 0:00:40]} 29. Rf1 {[%clk 0:00:35]}  Nc5 {[%clk 0:00:32]} 30. Nb5 {[%clk 0:00:35]}  Rc8 {[%clk 0:00:15]} 31. Nxc3 {[%clk 0:00:35]}  bxc3 {[%clk 0:00:14]} 32. Qxa6 {[%clk 0:00:36]}  bxa6 {[%clk 0:00:14]} 33. Rc2 {[%clk 0:00:33]}  Ne4 {[%clk 0:00:13]} 34. Bd4 {[%clk 0:00:26]}  Nh4+ {[%clk 0:00:13]} 35. Kh2 {[%clk 0:00:26]}  Nf5 {[%clk 0:00:14]} 36. Bg1 {[%clk 0:00:19]}  d4 {[%clk 0:00:12]} 37. Rd1 {[%clk 0:00:18]}  Rd8 {[%clk 0:00:10]} 38. Rd3 {[%clk 0:00:18]}  Nc5 {[%clk 0:00:09]} 39. Rdxc3 {[%clk 0:00:18]}  dxc3 {[%clk 0:00:09]} 40. Rxc3 {[%clk 0:00:17]}  Rd2+ {[%clk 0:00:08]} 41. Kh1 {[%clk 0:00:17]}  Ne4 {[%clk 0:00:06]} 42. Be3 {[%clk 0:00:17]}  Rd1+ {[%clk 0:00:03]} 43. Kg2 {[%clk 0:00:18]}  Nxc3 {[%clk 0:00:04]} 44. Bb6 {[%clk 0:00:17]}  Ne4 {[%clk 0:00:03]} 45. Kf3 {[%clk 0:00:17]}  Ned6 {[%clk 0:00:04]} 46. g6 {[%clk 0:00:18]}  Rh1 {[%clk 0:00:04]} 47. gxf7+ {[%clk 0:00:18]}  Kxf7 {[%clk 0:00:04]} 48. Kg2 {[%clk 0:00:19]}  Rb1 {[%clk 0:00:01]} 49. Bf2 {[%clk 0:00:20]}  Kg6 {[%clk 0:00:01]} 50. Kf3 {[%clk 0:00:21]} 1-0


[Site "https://www.chess.com"]

[Event "Titled Tuesday Blitz September 28 2021"]
[White "Vlassov, Nikolai"]
[Black "Pavlidis, Anastasios"]
[WhiteFideId "4103360"]
[BlackFideId "4208404"]
[WhiteElo "2407"]
[BlackElo "2136"]
[Result "1-0"]
[Round "07"]
[TimeControl "180+1"]
[Date "2021.09.28"]
[WhiteClock "0:00:13"]
[BlackClock "0:00:28"]

1. e4 {[%clk 0:03:00]}  c5 {[%clk 0:02:57]} 2. c3 {[%clk 0:03:00]}  Nf6 {[%clk 0:02:56]} 3. e5 {[%clk 0:03:00]}  Nd5 {[%clk 0:02:56]} 4. d4 {[%clk 0:03:00]}  cxd4 {[%clk 0:02:57]} 5. cxd4 {[%clk 0:03:00]}  Nc6 {[%clk 0:02:56]} 6. Nc3 {[%clk 0:03:00]}  Nxc3 {[%clk 0:02:56]} 7. bxc3 {[%clk 0:03:00]}  d6 {[%clk 0:02:56]} 8. f4 {[%clk 0:03:00]}  dxe5 {[%clk 0:02:56]} 9. fxe5 {[%clk 0:03:00]}  Bf5 {[%clk 0:02:55]} 10. Nf3 {[%clk 0:03:00]}  e6 {[%clk 0:02:56]} 11. Bd3 {[%clk 0:03:00]}  Bxd3 {[%clk 0:02:55]} 12. Qxd3 {[%clk 0:03:01]}  Be7 {[%clk 0:02:54]} 13. O-O {[%clk 0:03:01]}  h6 {[%clk 0:02:53]} 14. Bd2 {[%clk 0:02:57]}  O-O {[%clk 0:02:53]} 15. Rf2 {[%clk 0:02:57]}  Rc8 {[%clk 0:02:51]} 16. Raf1 {[%clk 0:02:56]}  Qd5 {[%clk 0:02:50]} 17. c4 {[%clk 0:02:44]}  Qd8 {[%clk 0:02:50]} 18. Qe4 {[%clk 0:02:44]}  Qb6 {[%clk 0:02:42]} 19. d5 {[%clk 0:02:36]}  exd5 {[%clk 0:02:38]} 20. cxd5 {[%clk 0:02:36]}  Bc5 {[%clk 0:02:29]} 21. dxc6 {[%clk 0:02:35]}  Bxf2+ {[%clk 0:02:29]} 22. Rxf2 {[%clk 0:02:35]}  Qxc6 {[%clk 0:02:30]} 23. Qg4 {[%clk 0:02:23]}  Qe6 {[%clk 0:02:30]} 24. Qxe6 {[%clk 0:02:03]}  fxe6 {[%clk 0:02:30]} 25. Bb4 {[%clk 0:02:03]}  Rfd8 {[%clk 0:02:28]} 26. Bd6 {[%clk 0:02:02]}  Rc1+ {[%clk 0:02:24]} 27. Rf1 {[%clk 0:02:02]}  Rxf1+ {[%clk 0:02:25]} 28. Kxf1 {[%clk 0:02:02]}  Rc8 {[%clk 0:02:25]} 29. Nd4 {[%clk 0:02:01]}  Kf7 {[%clk 0:02:23]} 30. Ke2 {[%clk 0:02:01]}  Rc1 {[%clk 0:02:17]} 31. a3 {[%clk 0:01:56]}  Ra1 {[%clk 0:02:16]} 32. Kf3 {[%clk 0:01:52]}  b6 {[%clk 0:02:13]} 33. g4 {[%clk 0:01:24]}  Rc1 {[%clk 0:02:09]} 34. h4 {[%clk 0:01:23]}  a6 {[%clk 0:02:08]} 35. h5 {[%clk 0:01:16]}  Rc4 {[%clk 0:02:06]} 36. Ke4 {[%clk 0:01:15]}  b5 {[%clk 0:02:05]} 37. Bb4 {[%clk 0:01:10]}  Rc1 {[%clk 0:02:02]} 38. Nb3 {[%clk 0:01:05]}  Rc4+ {[%clk 0:01:59]} 39. Kf3 {[%clk 0:01:03]}  Rc2 {[%clk 0:01:57]} 40. Nd2 {[%clk 0:00:56]}  Ra2 {[%clk 0:01:44]} 41. Nb3 {[%clk 0:00:44]}  Rc2 {[%clk 0:01:41]} 42. Na5 {[%clk 0:00:44]}  Rc7 {[%clk 0:01:38]} 43. Bd6 {[%clk 0:00:40]}  Rc3+ {[%clk 0:01:35]} 44. Ke4 {[%clk 0:00:36]}  g6 {[%clk 0:01:35]} 45. Nb7 {[%clk 0:00:30]}  Rc8 {[%clk 0:01:28]} 46. Bb4 {[%clk 0:00:25]}  Rc4+ {[%clk 0:01:26]} 47. Kf3 {[%clk 0:00:25]}  Rc1 {[%clk 0:01:10]} 48. Nd8+ {[%clk 0:00:24]}  Ke8 {[%clk 0:01:08]} 49. hxg6 {[%clk 0:00:20]}  Rf1+ {[%clk 0:01:02]} 50. Kg2 {[%clk 0:00:16]}  Rf4 {[%clk 0:01:02]} 51. Kg3 {[%clk 0:00:17]}  Rf1 {[%clk 0:00:54]} 52. g7 {[%clk 0:00:16]}  Rg1+ {[%clk 0:00:53]} 53. Kf3 {[%clk 0:00:14]}  Rf1+ {[%clk 0:00:50]} 54. Ke4 {[%clk 0:00:14]}  Kd7 {[%clk 0:00:30]} 55. g8=Q {[%clk 0:00:14]}  h5 {[%clk 0:00:30]} 56. Nf7 {[%clk 0:00:13]}  Kc6 {[%clk 0:00:28]} 57. Qc8+ {[%clk 0:00:13]}  Kb6 {[%clk 0:00:28]} 58. Qc5+ {[%clk 0:00:11]}  Kb7 {[%clk 0:00:29]} 59. Nd6+ {[%clk 0:00:11]}  Ka8 {[%clk 0:00:28]} 60. Qc6+ {[%clk 0:00:12]}  Ka7 {[%clk 0:00:28]} 61. Qb7# {[%clk 0:00:13]} 1-0


[Site "https://www.chess.com"]

[Event "Titled Tuesday Blitz September 28 2021"]
[White "Wadsworth, Matthew J"]
[Black "Di Nicolantonio, Lucas"]
[WhiteFideId "415804"]
[BlackFideId "680460"]
[WhiteElo "2293"]
[BlackElo "2381"]
[Result "1-0"]
[Round "07"]
[TimeControl "180+1"]
[Date "2021.09.28"]
[WhiteClock "0:00:08"]
[BlackClock "0:00:23"]

1. c4 {[%clk 0:03:00]}  g6 {[%clk 0:02:54]} 2. g3 {[%clk 0:03:00]}  Bg7 {[%clk 0:02:54]} 3. Bg2 {[%clk 0:02:59]}  d6 {[%clk 0:02:53]} 4. Nc3 {[%clk 0:02:59]}  f5 {[%clk 0:02:53]} 5. d3 {[%clk 0:02:57]}  Nf6 {[%clk 0:02:53]} 6. Rb1 {[%clk 0:02:55]}  O-O {[%clk 0:02:51]} 7. b4 {[%clk 0:02:54]}  Kh8 {[%clk 0:02:48]} 8. Nf3 {[%clk 0:02:52]}  e5 {[%clk 0:02:48]} 9. O-O {[%clk 0:02:50]}  Nc6 {[%clk 0:02:38]} 10. b5 {[%clk 0:02:49]}  Ne7 {[%clk 0:02:37]} 11. Nd2 {[%clk 0:02:37]}  g5 {[%clk 0:02:28]} 12. a4 {[%clk 0:02:26]}  f4 {[%clk 0:02:25]} 13. Nde4 {[%clk 0:02:21]}  Nxe4 {[%clk 0:02:14]} 14. Nxe4 {[%clk 0:02:21]}  Nf5 {[%clk 0:02:12]} 15. a5 {[%clk 0:02:15]}  Rb8 {[%clk 0:02:10]} 16. Ba3 {[%clk 0:02:07]}  Nd4 {[%clk 0:01:49]} 17. b6 {[%clk 0:02:03]}  axb6 {[%clk 0:01:49]} 18. axb6 {[%clk 0:02:04]}  c5 {[%clk 0:01:49]} 19. e3 {[%clk 0:01:54]}  f3 {[%clk 0:01:45]} 20. exd4 {[%clk 0:01:53]}  fxg2 {[%clk 0:01:45]} 21. Kxg2 {[%clk 0:01:52]}  exd4 {[%clk 0:01:37]} 22. Qh5 {[%clk 0:01:32]}  Bf5 {[%clk 0:01:26]} 23. Rbe1 {[%clk 0:01:11]}  Bg6 {[%clk 0:01:20]} 24. Qd1 {[%clk 0:01:03]}  Rf5 {[%clk 0:01:12]} 25. Bc1 {[%clk 0:00:58]}  Ra8 {[%clk 0:01:07]} 26. f4 {[%clk 0:00:33]}  Ra2+ {[%clk 0:00:58]} 27. Rf2 {[%clk 0:00:33]}  Rxf2+ {[%clk 0:00:56]} 28. Nxf2 {[%clk 0:00:33]}  Be8 {[%clk 0:00:45]} 29. Qg4 {[%clk 0:00:19]}  Bc6+ {[%clk 0:00:45]} 30. Kg1 {[%clk 0:00:19]}  Qf8 {[%clk 0:00:43]} 31. Nh3 {[%clk 0:00:14]}  h6 {[%clk 0:00:36]} 32. fxg5 {[%clk 0:00:13]}  Bf3 {[%clk 0:00:36]} 33. Qh4 {[%clk 0:00:12]}  h5 {[%clk 0:00:36]} 34. Nf4 {[%clk 0:00:11]}  Kg8 {[%clk 0:00:29]} 35. Nxh5 {[%clk 0:00:10]}  Be5 {[%clk 0:00:19]} 36. Nf6+ {[%clk 0:00:09]}  Bxf6 {[%clk 0:00:20]} 37. gxf6 {[%clk 0:00:09]}  Rxf6 {[%clk 0:00:19]} 38. Bg5 {[%clk 0:00:09]}  Rg6 {[%clk 0:00:18]} 39. Re7 {[%clk 0:00:09]}  Rg7 {[%clk 0:00:13]} 40. Rxg7+ {[%clk 0:00:06]}  Qxg7 {[%clk 0:00:14]} 41. Qf4 {[%clk 0:00:06]}  Qf7 {[%clk 0:00:13]} 42. Qxd6 {[%clk 0:00:05]}  Bc6 {[%clk 0:00:14]} 43. Qd8+ {[%clk 0:00:04]}  Kh7 {[%clk 0:00:14]} 44. Qe7 {[%clk 0:00:05]}  Qxe7 {[%clk 0:00:14]} 45. Bxe7 {[%clk 0:00:05]}  Ba4 {[%clk 0:00:14]} 46. Bxc5 {[%clk 0:00:05]}  Bc2 {[%clk 0:00:15]} 47. Bxd4 {[%clk 0:00:05]}  Bxd3 {[%clk 0:00:16]} 48. c5 {[%clk 0:00:05]}  Be4 {[%clk 0:00:17]} 49. Kf2 {[%clk 0:00:05]}  Bc6 {[%clk 0:00:18]} 50. Ke3 {[%clk 0:00:06]}  Kg6 {[%clk 0:00:18]} 51. Kf4 {[%clk 0:00:06]}  Kh5 {[%clk 0:00:19]} 52. h3 {[%clk 0:00:06]}  Kg6 {[%clk 0:00:19]} 53. g4 {[%clk 0:00:06]}  Bd7 {[%clk 0:00:20]} 54. h4 {[%clk 0:00:07]}  Bc6 {[%clk 0:00:21]} 55. h5+ {[%clk 0:00:07]}  Kh7 {[%clk 0:00:21]} 56. g5 {[%clk 0:00:07]}  Be8 {[%clk 0:00:22]} 57. g6+ {[%clk 0:00:07]}  Kg8 {[%clk 0:00:22]} 58. Kg5 {[%clk 0:00:07]}  Bc6 {[%clk 0:00:23]} 59. h6 {[%clk 0:00:07]}  Be8 {[%clk 0:00:23]} 60. h7+ {[%clk 0:00:08]}  Kf8 {[%clk 0:00:23]} 1-0


[Site "https://www.chess.com"]

[Event "Titled Tuesday Blitz September 28 2021"]
[White "Yeletsky, Ivan"]
[Black "Lewtak, Damian"]
[WhiteFideId "24180327"]
[BlackFideId "1141724"]
[WhiteElo "2344"]
[BlackElo "2231"]
[Result "1-0"]
[Round "07"]
[TimeControl "180+1"]
[Date "2021.09.28"]
[WhiteClock "0:01:19"]
[BlackClock "0:01:18"]

1. e4 {[%clk 0:03:00]}  g6 {[%clk 0:03:00]} 2. h4 {[%clk 0:02:59]}  Nf6 {[%clk 0:02:55]} 3. Nc3 {[%clk 0:02:57]}  d6 {[%clk 0:02:54]} 4. d4 {[%clk 0:02:57]}  e5 {[%clk 0:02:51]} 5. dxe5 {[%clk 0:02:45]}  dxe5 {[%clk 0:02:51]} 6. Qxd8+ {[%clk 0:02:45]}  Kxd8 {[%clk 0:02:52]} 7. Bc4 {[%clk 0:02:38]}  Be6 {[%clk 0:02:47]} 8. Bxe6 {[%clk 0:02:37]}  fxe6 {[%clk 0:02:48]} 9. f3 {[%clk 0:02:34]}  Bd6 {[%clk 0:02:46]} 10. Nh3 {[%clk 0:02:31]}  a6 {[%clk 0:02:42]} 11. Nf2 {[%clk 0:02:26]}  Ke7 {[%clk 0:02:39]} 12. Be3 {[%clk 0:02:17]}  Nbd7 {[%clk 0:02:39]} 13. Nd3 {[%clk 0:02:17]}  Rhc8 {[%clk 0:02:23]} 14. a4 {[%clk 0:02:12]}  c5 {[%clk 0:02:16]} 15. a5 {[%clk 0:02:06]}  c4 {[%clk 0:02:15]} 16. Nf2 {[%clk 0:02:03]}  Nh5 {[%clk 0:02:07]} 17. Bg5+ {[%clk 0:02:00]}  Kf7 {[%clk 0:02:06]} 18. O-O-O {[%clk 0:01:50]}  Rc6 {[%clk 0:02:06]} 19. Na4 {[%clk 0:01:43]}  Nf4 {[%clk 0:02:00]} 20. Rd2 {[%clk 0:01:31]}  Nc5 {[%clk 0:01:45]} 21. Rxd6 {[%clk 0:01:24]}  Nxa4 {[%clk 0:01:30]} 22. Rd7+ {[%clk 0:01:21]}  Kg8 {[%clk 0:01:29]} 23. Ng4 {[%clk 0:01:21]}  Nh5 {[%clk 0:01:21]} 24. Nh6+ {[%clk 0:01:19]}  Kh8 {[%clk 0:01:18]} 25. g4 {[%clk 0:01:19]} 1-0


[Site "https://www.chess.com"]